lending/lending_fUSD_20250131
["ID","MTS","AMOUNT","RATE_DAILY","PERIOD"]
[351048741,1738307440395,-640.07,0.00019178,2]
[351048743,1738307440404,-792.04,0.00019178,2]
[351048745,1738307440414,-500.0,0.00019178,2]
[351048747,1738307440423,-493.71556913,0.00019178,2]
[351048749,1738307440436,-6.28443087,0.00019178,2]
[351048751,1738307440447,-500.0,0.00019178,2]
[351048753,1738307440456,-2.92986309,0.00019178,2]
[351048990,1738307442775,-393.29595266,0.00019178,2]
[351049005,1738307442992,-173.84418425,0.00019178,2]
[351049007,1738307443002,-500.0,0.00019178,2]
[351049009,1738307443012,-750.26,0.00019178,2]
[351049011,1738307443022,-500.0,0.00019178,2]
[351049013,1738307443032,-500.0,0.00019178,2]
[351049015,1738307443042,-500.0,0.00019178,2]
[351049017,1738307443052,-500.0,0.00019178,2]
[351049019,1738307443062,-500.0,0.00019178,2]
[351049021,1738307443072,-500.0,0.00019178,2]
[351049023,1738307443082,-500.0,0.00019178,2]
[351049025,1738307443092,-500.0,0.00019178,2]
[351049027,1738307443102,-500.0,0.00019178,2]
[351049029,1738307443112,-526.14,0.00019178,2]
[351049032,1738307443122,-500.0,0.00019178,2]
[351049034,1738307443132,-500.0,0.00019178,2]
[351049036,1738307443142,-500.0,0.00019178,2]
[351049037,1738307443151,-512.43201804,0.00019178,2]
[351049040,1738307443161,-265.8095371,0.00019178,2]
[351049042,1738307443171,-500.0,0.00019178,2]
[351049044,1738307443181,-500.0,0.00019178,2]
[351049046,1738307443191,-519.83277816,0.00019178,2]
[351049048,1738307443200,-500.0,0.00019178,2]
[351049050,1738307443210,-500.0,0.00019178,2]
[351049052,1738307443220,-500.0,0.00019178,2]
[351049054,1738307443230,-500.0,0.00019178,2]
[351049056,1738307443241,-500.0,0.00019178,2]
[351049058,1738307443251,-500.0,0.00019178,2]
[351049060,1738307443261,-633.43,0.00019178,2]
[351049062,1738307443271,-512.1906315,0.00019178,2]
[351049064,1738307443282,-500.0,0.00019178,2]
[351049067,1738307443292,-500.58,0.00019178,2]
[351049070,1738307443302,-186.35900689,0.00019178,2]
[351049072,1738307443312,-500.0,0.00019178,2]
[351049074,1738307443322,-507.12556066,0.00019178,2]
[351049076,1738307443331,-500.0,0.00019178,2]
[351049078,1738307443341,-351.66589986,0.00019178,2]
[351049080,1738307443352,-504.70259812,0.00019178,2]
[351049083,1738307443362,-500.0,0.00019178,2]
[351049085,1738307443371,-500.0,0.00019178,2]
[351049087,1738307443382,-961.87,0.00019178,2]
[351049089,1738307443395,-500.0,0.00019178,2]
[351049091,1738307443404,-500.0,0.00019178,2]
[351049093,1738307443414,-1398.06,0.00019178,2]
[351049095,1738307443423,-500.0,0.00019178,2]
[351049097,1738307443434,-500.0,0.00019178,2]
[351049099,1738307443444,-500.0,0.00019178,2]
[351049101,1738307443454,-512.46199515,0.00019178,2]
[351049103,1738307443465,-248.24377808,0.00019178,2]
[351049105,1738307443475,-510.55625502,0.00019178,2]
[351049107,1738307443485,-500.0,0.00019178,2]
[351049110,1738307443496,-1155.98,0.00019178,2]
[351049112,1738307443505,-500.0,0.00019178,2]
[351049114,1738307443515,-500.0,0.00019178,2]
[351049116,1738307443525,-610.7,0.00019178,2]
[351049118,1738307443534,-1813.54,0.00019178,2]
[351049120,1738307443545,-507.96,0.00019178,2]
[351049122,1738307443555,-357.58640754,0.00019178,2]
[351049124,1738307443565,-500.0,0.00019178,2]
[351049126,1738307443575,-500.0,0.00019178,2]
[351049128,1738307443585,-500.0,0.00019178,2]
[351049157,1738307443838,-500.0,0.00019178,2]
[351049159,1738307443848,-721.04,0.00019178,2]
[351049161,1738307443858,-509.97340933,0.00019178,2]
[351049163,1738307443868,-569.44,0.00019178,2]
[351049165,1738307443878,-500.0,0.00019178,2]
[351049167,1738307443888,-500.0,0.00019178,2]
[351049169,1738307443898,-500.0,0.00019178,2]
[351049171,1738307443907,-999.64,0.00019178,2]
[351049173,1738307443916,-508.3635162,0.00019178,2]
[351049175,1738307443926,-507.33,0.00019178,2]
[351049177,1738307443935,-500.0,0.00019178,2]
[351049179,1738307443944,-478.04140131,0.00019178,2]
[351049181,1738307443954,-1217.54,0.00019178,2]
[351049183,1738307443964,-500.0,0.00019178,2]
[351049185,1738307443973,-500.0,0.00019178,2]
[351049187,1738307443984,-613.84,0.00019178,2]
[351049189,1738307443993,-500.0,0.00019178,2]
[351049191,1738307444003,-402.75772404,0.00019178,2]
[351049193,1738307444012,-500.0,0.00019178,2]
[351049195,1738307444021,-688.83,0.00019178,2]
[351049197,1738307444031,-3459.68,0.00019178,2]
[351049199,1738307444040,-460.0,0.00019178,2]
[351049201,1738307444050,-842.48,0.00019178,2]
[351049203,1738307444060,-406.3081156,0.00019178,2]
[351049205,1738307444069,-214.78966176,0.00019178,2]
[351049207,1738307444079,-500.0,0.00019178,2]
[351049209,1738307444089,-1657.53,0.00019178,2]
[351049211,1738307444098,-500.0,0.00019178,2]
[351049213,1738307444108,-634.33043383,0.00019178,2]
[351049215,1738307444117,-500.0,0.00019178,2]
[351049217,1738307444126,-500.0,0.00019178,2]
[351049219,1738307444135,-500.0,0.00019178,2]
[351049221,1738307444144,-1964.05,0.00019178,2]
[351049223,1738307444154,-1000.0,0.00019178,9]
[351049225,1738307444163,-826.26,0.00019178,2]
[351049226,1738307444173,-500.0,0.00019178,2]
[351049229,1738307444182,-645.37,0.00019178,2]
[351049230,1738307444191,-2497.6,0.00019178,2]
[351049232,1738307444201,-500.0,0.00019178,2]
[351049234,1738307444210,-500.0,0.00019178,2]
[351049236,1738307444219,-1058.48,0.00019178,2]
[351049238,1738307444229,-505.43522599,0.00019178,2]
[351049240,1738307444238,-500.0,0.00019178,2]
[351049242,1738307444248,-513.59805523,0.00019178,2]
[351049244,1738307444257,-500.0,0.00019178,2]
[351049246,1738307444267,-500.0,0.00019178,2]
[351049248,1738307444276,-502.19748389,0.00019178,2]
[351049250,1738307444286,-500.0,0.00019178,2]
[351049252,1738307444295,-1390.5,0.00019178,2]
[351049254,1738307444305,-500.0,0.00019178,2]
[351049256,1738307444314,-6493.2,0.00019178,2]
[351049258,1738307444324,-500.0,0.00019178,2]
[351049260,1738307444333,-500.0,0.00019178,2]
[351049262,1738307444343,-500.0,0.00019178,2]
[351049264,1738307444352,-500.0,0.00019178,2]
[351049266,1738307444361,-500.0,0.00019178,2]
[351049268,1738307444371,-510.69,0.00019178,2]
[351049270,1738307444381,-500.0,0.00019178,2]
[351049272,1738307444393,-767.19,0.00019178,2]
[351049274,1738307444403,-500.0,0.00019178,2]
[351049276,1738307444412,-359.80933509,0.00019178,2]
[351049278,1738307444421,-682.95,0.00019178,2]
[351049280,1738307444433,-500.0,0.00019178,2]
[351049282,1738307444442,-500.0,0.00019178,2]
[351049284,1738307444452,-860.84,0.00019178,2]
[351049286,1738307444462,-500.0,0.00019178,2]
[351049288,1738307444471,-731.21,0.00019178,2]
[351049290,1738307444481,-888.57,0.00019178,2]
[351049292,1738307444491,-580.33,0.00019178,2]
[351049295,1738307444500,-1030.9,0.00019178,2]
[351049297,1738307444511,-587.81,0.00019178,2]
[351049299,1738307444520,-1073.49,0.00019178,2]
[351049301,1738307444529,-2625.63,0.00019178,2]
[351049303,1738307444539,-500.0,0.00019178,2]
[351049305,1738307444548,-700.4,0.00019178,2]
[351049307,1738307444557,-500.0,0.00019178,2]
[351049309,1738307444566,-500.0,0.00019178,2]
[351049311,1738307444576,-1417.07,0.00019178,2]
[351049313,1738307444586,-500.0,0.00019178,2]
[351049315,1738307444595,-679.05,0.00019178,2]
[351049317,1738307444605,-500.0,0.00019178,2]
[351049319,1738307444614,-595.54,0.00019178,2]
[351049321,1738307444624,-500.0,0.00019178,2]
[351049323,1738307444633,-2156.4,0.00019178,2]
[351049325,1738307444642,-1202.65,0.00019178,2]
[351049327,1738307444651,-500.0,0.00019178,2]
[351049329,1738307444661,-927.44,0.00019178,2]
[351049331,1738307444670,-2833.5,0.00019178,2]
[351049333,1738307444679,-500.0,0.00019178,2]
[351049335,1738307444689,-500.0,0.00019178,2]
[351049336,1738307444698,-887.17,0.00019178,2]
[351049337,1738307444708,-519.51,0.00019178,2]
[351049338,1738307444717,-1748.47,0.00019178,2]
[351049339,1738307444726,-2292.17,0.00019178,2]
[351049340,1738307444737,-2536.11,0.00019178,2]
[351049341,1738307444746,-1826.56,0.00019178,2]
[351049342,1738307444755,-2257.95,0.00019178,2]
[351049343,1738307444765,-591.71,0.00019178,2]
[351049345,1738307444774,-972.12,0.00019178,2]
[351049347,1738307444783,-2980.02,0.00019178,2]
[351049349,1738307444792,-500.0,0.00019178,2]
[351049351,1738307444802,-500.0,0.00019178,2]
[351049353,1738307444811,-2050.6,0.00019178,2]
[351049355,1738307444821,-500.0,0.00019178,2]
[351049357,1738307444830,-512.65,0.00019178,2]
[351049359,1738307444839,-1358.66,0.00019178,2]
[351049361,1738307444849,-500.0,0.00019178,2]
[351049363,1738307444859,-799.19,0.00019178,2]
[351049365,1738307444868,-1676.5,0.00019178,2]
[351049367,1738307444877,-500.0,0.00019178,2]
[351049369,1738307444887,-533.84,0.00019178,2]
[351049371,1738307444896,-4112.87,0.00019178,2]
[351049373,1738307444905,-533.90563624,0.00019178,2]
[351049375,1738307444915,-500.0,0.00019178,2]
[351049377,1738307444924,-500.0,0.00019178,2]
[351049379,1738307444933,-500.0,0.00019178,2]
[351049381,1738307444943,-1303.64,0.00019178,2]
[351049383,1738307444954,-500.0,0.00019178,2]
[351049385,1738307444963,-1547.85,0.00019178,2]
[351049387,1738307444973,-1604.19,0.00019178,2]
[351049389,1738307444985,-3357.94,0.00019178,2]
[351049391,1738307444995,-500.0,0.00019178,2]
[351049393,1738307445005,-995.49,0.00019178,2]
[351049395,1738307445014,-500.0,0.00019178,2]
[351049397,1738307445024,-1557.41,0.00019178,2]
[351049399,1738307445033,-500.0,0.00019178,2]
[351049401,1738307445042,-731.4,0.00019178,2]
[351049403,1738307445052,-2473.42,0.00019178,2]
[351049405,1738307445061,-2662.36,0.00019178,2]
[351049407,1738307445070,-3673.65,0.00019178,2]
[351049409,1738307445079,-1865.88,0.00019178,2]
[351049411,1738307445088,-753.73,0.00019178,2]
[351049413,1738307445098,-1395.31,0.00019178,2]
[351049415,1738307445107,-500.0,0.00019178,2]
[351049417,1738307445116,-2943.53,0.00019178,2]
[351049419,1738307445125,-3645.9,0.00019178,2]
[351049421,1738307445135,-500.0,0.00019178,2]
[351049423,1738307445144,-2049.26,0.00019178,2]
[351049425,1738307445154,-1052.64,0.00019178,2]
[351049427,1738307445163,-500.0,0.00019178,2]
[351049429,1738307445172,-1170.08,0.00019178,2]
[351049431,1738307445182,-500.0,0.00019178,2]
[351049433,1738307445191,-500.0,0.00019178,2]
[351049435,1738307445200,-500.0,0.00019178,2]
[351049439,1738307445210,-738.41,0.00019178,2]
[351049441,1738307445220,-508.49095603,0.00019178,2]
[351049444,1738307445229,-500.0,0.00019178,2]
[351049447,1738307445239,-1766.74,0.00019178,2]
[351049450,1738307445249,-1309.4,0.00019178,2]
[351049453,1738307445259,-514.33358493,0.00019178,2]
[351049456,1738307445268,-500.0,0.00019178,2]
[351049459,1738307445278,-500.0,0.00019178,2]
[351049462,1738307445287,-700.2,0.00019178,2]
[351049465,1738307445296,-386.14541892,0.00019178,2]
[351049468,1738307445306,-500.0,0.00019178,2]
[351049471,1738307445316,-1728.08,0.00019178,2]
[351049474,1738307445325,-3397.99,0.00019178,2]
[351049477,1738307445335,-500.0,0.00019178,2]
[351049481,1738307445344,-1394.8,0.00019178,2]
[351049484,1738307445354,-854.52,0.00019178,2]
[351049488,1738307445363,-4543.73,0.00019178,2]
[351049492,1738307445373,-500.0,0.00019178,2]
[351049496,1738307445383,-545.06,0.00019178,2]
[351049500,1738307445396,-500.0,0.00019178,2]
[351049504,1738307445405,-500.0,0.00019178,2]
[351049508,1738307445414,-560.96,0.00019178,2]
[351049512,1738307445425,-949.61,0.00019178,2]
[351049516,1738307445435,-500.0,0.00019178,2]
[351049519,1738307445444,-1016.12,0.00019178,2]
[351049522,1738307445453,-619.93,0.00019178,2]
[351049526,1738307445463,-606.81,0.00019178,2]
[351049529,1738307445472,-572.83,0.00019178,2]
[351049532,1738307445481,-926.31,0.00019178,2]
[351049534,1738307445491,-500.0,0.00019178,2]
[351049537,1738307445501,-528.26,0.00019178,2]
[351049540,1738307445510,-1552.51,0.00019178,2]
[351049543,1738307445519,-500.0,0.00019178,2]
[351049546,1738307445529,-683.0,0.00019178,2]
[351049549,1738307445538,-507.86036941,0.00019178,2]
[351049551,1738307445547,-661.99,0.00019178,2]
[351049553,1738307445558,-770.3,0.00019178,2]
[351049556,1738307445567,-500.0,0.00019178,2]
[351049558,1738307445576,-961.65,0.00019178,2]
[351049560,1738307445586,-500.0,0.00019178,2]
[351049562,1738307445595,-1245.43,0.00019178,2]
[351049564,1738307445604,-2205.33,0.00019178,2]
[351049567,1738307445614,-500.0,0.00019178,2]
[351049569,1738307445623,-505.11,0.00019178,2]
[351049571,1738307445632,-2726.84,0.00019178,2]
[351049573,1738307445642,-620.78,0.00019178,2]
[351049575,1738307445651,-500.0,0.00019178,2]
[351049576,1738307445660,-1287.76,0.00019178,2]
[351049578,1738307445669,-500.0,0.00019178,2]
[351049580,1738307445679,-500.0,0.00019178,2]
[351049582,1738307445688,-500.0,0.00019178,2]
[351049584,1738307445698,-500.0,0.00019178,2]
[351049587,1738307445707,-500.0,0.00019178,2]
[351049589,1738307445717,-528.31,0.00019178,2]
[351049591,1738307445726,-517.83,0.00019178,2]
[351049592,1738307445735,-1789.15,0.00019178,2]
[351049595,1738307445745,-500.0,0.00019178,2]
[351049596,1738307445754,-500.0,0.00019178,2]
[351049598,1738307445763,-374.37,0.00019178,2]
[351049601,1738307445773,-201.99026882,0.00019178,2]
[351049603,1738307445782,-150.52,0.00019178,2]
[351049604,1738307445791,-51132.53585582,0.00019178,2]
[351049606,1738307445800,-158.16768384,0.00019214,2]
[351049608,1738307445809,-1150.07,0.00019314,3]
[351049610,1738307445819,-500.0,0.00019315,3]
[351049612,1738307445828,-500.0,0.00019315,3]
[351049614,1738307445837,-500.0,0.00019315,3]
[351049616,1738307445846,-500.0,0.00019315,3]
[351049619,1738307445855,-500.0,0.00019315,3]
[351049621,1738307445864,-500.0,0.00019315,3]
[351049622,1738307445874,-500.0,0.00019315,3]
[351049625,1738307445883,-500.0,0.00019315,3]
[351049627,1738307445893,-500.0,0.00019315,3]
[351049628,1738307445902,-1229.024977,0.00019315,3]
[351049631,1738307445911,-500.0,0.00019315,3]
[351049633,1738307445921,-812.216735,0.00019315,3]
[351049635,1738307445931,-500.0,0.00019315,3]
[351049637,1738307445940,-500.0,0.00019315,3]
[351049638,1738307445949,-500.0,0.00019315,3]
[351049640,1738307445958,-500.0,0.00019315,3]
[351049642,1738307445967,-500.0,0.00019315,3]
[351049644,1738307445976,-500.0,0.00019315,3]
[351049646,1738307445986,-500.0,0.00019315,3]
[351049648,1738307445995,-500.0,0.00019315,3]
[351049650,1738307446005,-500.0,0.00019315,3]
[351049652,1738307446014,-500.0,0.00019315,3]
[351049654,1738307446024,-500.0,0.00019315,3]
[351049656,1738307446033,-500.0,0.00019315,3]
[351049658,1738307446041,-500.0,0.00019315,3]
[351049660,1738307446050,-500.0,0.00019315,3]
[351049662,1738307446060,-396.69144396,0.00019315,3]
[351049664,1738307446070,-562.37,0.00019315,3]
[351049666,1738307446080,-500.0,0.00019315,3]
[351049668,1738307446089,-500.0,0.00019315,3]
[351049670,1738307446098,-500.0,0.00019315,3]
[351049678,1738307446162,-500.0,0.00019315,3]
[351049680,1738307446171,-500.0,0.00019315,3]
[351049682,1738307446181,-709.55,0.00019315,3]
[351049684,1738307446190,-500.0,0.00019315,3]
[351049686,1738307446199,-612.2534352,0.00019315,3]
[351049688,1738307446208,-500.0,0.00019315,3]
[351049690,1738307446218,-500.0,0.00019315,3]
[351049692,1738307446227,-500.0,0.00019315,3]
[351049694,1738307446236,-617.27197472,0.00019315,3]
[351049696,1738307446245,-605.29,0.00019315,3]
[351049698,1738307446254,-658.92,0.00019315,3]
[351049700,1738307446263,-500.0,0.00019315,3]
[351049702,1738307446272,-500.0,0.00019315,3]
[351049704,1738307446281,-500.0,0.00019315,3]
[351049706,1738307446291,-500.0,0.00019315,3]
[351049708,1738307446300,-500.0,0.00019315,3]
[351049710,1738307446308,-638.47,0.00019315,3]
[351049712,1738307446318,-500.0,0.00019315,3]
[351049714,1738307446327,-500.0,0.00019315,3]
[351049716,1738307446336,-500.0,0.00019315,3]
[351049718,1738307446346,-500.0,0.00019315,3]
[351049720,1738307446355,-500.0,0.00019315,3]
[351049722,1738307446364,-500.0,0.00019315,3]
[351049724,1738307446373,-500.0,0.00019315,3]
[351049726,1738307446385,-500.0,0.00019315,3]
[351049728,1738307446395,-500.0,0.00019315,3]
[351049729,1738307446405,-540.19,0.00019315,3]
[351049730,1738307446414,-500.0,0.00019315,3]
[351049731,1738307446423,-500.0,0.00019315,3]
[351049732,1738307446432,-500.0,0.00019315,3]
[351049733,1738307446441,-624.31006151,0.00019315,3]
[351049734,1738307446451,-671.26,0.00019315,3]
[351049735,1738307446460,-500.0,0.00019315,3]
[351049736,1738307446471,-500.0,0.00019315,3]
[351049738,1738307446480,-500.0,0.00019315,3]
[351049740,1738307446490,-500.0,0.00019315,3]
[351049742,1738307446499,-500.0,0.00019315,3]
[351049744,1738307446508,-500.0,0.00019315,3]
[351049746,1738307446518,-500.0,0.00019315,3]
[351049748,1738307446527,-598.39,0.00019315,3]
[351049750,1738307446536,-620.46742888,0.00019315,3]
[351049752,1738307446546,-500.0,0.00019315,3]
[351049754,1738307446555,-500.0,0.00019315,3]
[351049756,1738307446564,-500.0,0.00019315,3]
[351049758,1738307446573,-500.0,0.00019315,3]
[351049760,1738307446582,-609.55,0.00019315,3]
[351049762,1738307446591,-500.0,0.00019315,3]
[351049763,1738307446599,-500.0,0.00019315,3]
[351049766,1738307446609,-500.0,0.00019315,3]
[351049767,1738307446619,-500.0,0.00019315,3]
[351049769,1738307446628,-500.0,0.00019315,3]
[351049771,1738307446637,-500.0,0.00019315,3]
[351049773,1738307446646,-797.57,0.00019315,3]
[351049775,1738307446655,-500.0,0.00019315,3]
[351049777,1738307446664,-500.0,0.00019315,3]
[351049779,1738307446673,-500.0,0.00019315,3]
[351049781,1738307446683,-500.0,0.00019315,3]
[351049783,1738307446692,-500.0,0.00019315,3]
[351049785,1738307446701,-500.0,0.00019315,3]
[351049787,1738307446711,-500.0,0.00019315,3]
[351049789,1738307446720,-500.0,0.00019315,3]
[351049791,1738307446730,-500.0,0.00019315,3]
[351049793,1738307446739,-500.0,0.00019315,3]
[351049795,1738307446748,-500.0,0.00019315,3]
[351049797,1738307446757,-673.55,0.00019315,3]
[351049799,1738307446766,-671.39,0.00019315,3]
[351049801,1738307446776,-500.0,0.00019315,3]
[351049803,1738307446785,-500.0,0.00019315,3]
[351049805,1738307446794,-601.83,0.00019315,3]
[351049807,1738307446803,-988.13,0.00019315,3]
[351049809,1738307446813,-174.93,0.00019315,3]
[351049811,1738307446821,-577.42,0.00019315,3]
[351049813,1738307446830,-500.0,0.00019315,3]
[351049815,1738307446839,-500.0,0.00019315,3]
[351049817,1738307446849,-500.0,0.00019315,3]
[351049819,1738307446857,-500.0,0.00019315,3]
[351049821,1738307446867,-604.17,0.00019315,3]
[351049823,1738307446875,-500.0,0.00019315,3]
[351049825,1738307446884,-500.0,0.00019315,3]
[351049827,1738307446894,-500.0,0.00019315,3]
[351049829,1738307446903,-508.69,0.00019315,3]
[351049831,1738307446912,-500.0,0.00019315,3]
[351049833,1738307446921,-500.0,0.00019315,3]
[351049835,1738307446930,-500.0,0.00019315,3]
[351049837,1738307446939,-500.0,0.00019315,3]
[351049839,1738307446948,-500.0,0.00019315,3]
[351049841,1738307446957,-500.0,0.00019315,3]
[351049843,1738307446966,-500.0,0.00019315,3]
[351049845,1738307446975,-500.0,0.00019315,3]
[351049846,1738307446985,-640.07,0.00019315,3]
[351049848,1738307446994,-792.04,0.00019315,3]
[351049850,1738307447003,-500.0,0.00019315,3]
[351049852,1738307447012,-500.0,0.00019315,3]
[351049854,1738307447022,-570.07,0.00019315,3]
[351049856,1738307447031,-500.0,0.00019315,3]
[351049858,1738307447040,-750.26,0.00019315,3]
[351049860,1738307447049,-500.0,0.00019315,3]
[351049862,1738307447058,-500.0,0.00019315,3]
[351049864,1738307447068,-500.0,0.00019315,3]
[351049866,1738307447077,-500.0,0.00019315,3]
[351049868,1738307447087,-500.0,0.00019315,3]
[351049870,1738307447096,-500.0,0.00019315,3]
[351049872,1738307447107,-500.0,0.00019315,3]
[351049874,1738307447116,-500.0,0.00019315,3]
[351049876,1738307447126,-500.0,0.00019315,3]
[351049878,1738307447135,-526.14,0.00019315,3]
[351049880,1738307447144,-500.0,0.00019315,3]
[351049882,1738307447153,-500.0,0.00019315,3]
[351049884,1738307447163,-500.0,0.00019315,3]
[351049886,1738307447173,-500.0,0.00019315,3]
[351049888,1738307447182,-500.0,0.00019315,2]
[351049890,1738307447194,-500.0,0.00019315,3]
[351049892,1738307447206,-500.0,0.00019315,3]
[351049894,1738307447215,-500.0,0.00019315,3]
[351049896,1738307447224,-500.0,0.00019315,3]
[351049898,1738307447233,-500.0,0.00019315,3]
[351049900,1738307447246,-633.43,0.00019315,3]
[351049902,1738307447258,-500.0,0.00019315,3]
[351049904,1738307447268,-500.58,0.00019315,3]
[351049906,1738307447278,-500.0,0.00019315,3]
[351049908,1738307447287,-500.0,0.00019315,3]
[351049910,1738307447297,-500.0,0.00019315,3]
[351049912,1738307447306,-961.87,0.00019315,3]
[351049914,1738307447315,-500.0,0.00019315,3]
[351049916,1738307447324,-500.0,0.00019315,3]
[351049918,1738307447334,-1398.06,0.00019315,3]
[351049920,1738307447343,-500.0,0.00019315,3]
[351049922,1738307447352,-500.0,0.00019315,3]
[351049924,1738307447361,-500.0,0.00019315,3]
[351049926,1738307447370,-500.0,0.00019315,3]
[351049928,1738307447380,-1155.98,0.00019315,3]
[351049930,1738307447394,-500.0,0.00019315,3]
[351049932,1738307447402,-500.0,0.00019315,3]
[351049934,1738307447412,-610.7,0.00019315,3]
[351049936,1738307447421,-1813.54,0.00019315,3]
[351049938,1738307447432,-507.96,0.00019315,3]
[351049940,1738307447441,-500.0,0.00019315,3]
[351049942,1738307447450,-503.13034414,0.00019315,3]
[351049944,1738307447459,-500.0,0.00019315,3]
[351049946,1738307447470,-721.04,0.00019315,3]
[351049948,1738307447479,-569.44,0.00019315,3]
[351049950,1738307447491,-500.0,0.00019315,3]
[351049952,1738307447501,-999.64,0.00019315,3]
[351049954,1738307447510,-507.33,0.00019315,3]
[351049956,1738307447519,-500.0,0.00019315,3]
[351049958,1738307447528,-1217.54,0.00019315,3]
[351049960,1738307447537,-500.0,0.00019315,3]
[351049962,1738307447546,-500.0,0.00019315,3]
[351049964,1738307447555,-613.84,0.00019315,3]
[351049966,1738307447565,-500.0,0.00019315,3]
[351049968,1738307447574,-688.83,0.00019315,3]
[351049970,1738307447583,-3459.68,0.00019315,3]
[351049972,1738307447592,-842.48,0.00019315,3]
[351049974,1738307447601,-500.0,0.00019315,3]
[351049976,1738307447611,-1657.53,0.00019315,3]
[351049978,1738307447620,-294.66633715,0.00019315,3]
[351049980,1738307447630,-500.0,0.00019315,3]
[351049982,1738307447639,-1964.05,0.00019315,3]
[351049984,1738307447649,-826.26,0.00019315,3]
[351049986,1738307447658,-496.7537419,0.00019315,3]
[351049988,1738307447667,-645.37,0.00019315,3]
[351049990,1738307447677,-801.54651545,0.00019315,3]
[351050000,1738307447766,-1696.05348455,0.00019315,3]
[351050002,1738307447776,-68.0434745,0.00019315,3]
[351050036,1738307448167,-12819.93768824,0.00019306,2]
[351050038,1738307448177,-431.9565255,0.00019315,3]
[351050040,1738307448187,-500.0,0.00019315,3]
[351050042,1738307448197,-1058.48,0.00019315,3]
[351050044,1738307448206,-500.0,0.00019315,3]
[351050046,1738307448216,-500.0,0.00019315,3]
[351050048,1738307448225,-500.0,0.00019315,3]
[351050050,1738307448235,-1390.5,0.00019315,3]
[351050052,1738307448247,-500.0,0.00019315,3]
[351050054,1738307448261,-2764.97378627,0.00019315,3]
[351050056,1738307448273,-3728.22621373,0.00019315,3]
[351050058,1738307448283,-500.0,0.00019315,3]
[351050060,1738307448293,-535.18436973,0.00019315,3]
[351050062,1738307448303,-500.0,0.00019315,3]
[351050064,1738307448312,-500.0,0.00019315,3]
[351050066,1738307448322,-510.69,0.00019315,3]
[351050068,1738307448331,-500.0,0.00019315,3]
[351050070,1738307448341,-440.52266623,0.00019315,3]
[351050072,1738307448352,-326.66733377,0.00019315,3]
[351050074,1738307448362,-500.0,0.00019315,3]
[351050076,1738307448372,-3.46235676,0.00019315,3]
[351050081,1738307448419,-389.55,0.00019315,3]
[351050084,1738307448437,-289.93764324,0.00019315,3]
[351050086,1738307448447,-500.0,0.00019315,3]
[351050088,1738307448457,-500.0,0.00019315,3]
[351050090,1738307448467,-860.84,0.00019315,3]
[351050092,1738307448477,-500.0,0.00019315,3]
[351050094,1738307448486,-542.9343702,0.00019315,3]
[351050097,1738307448511,-188.2756298,0.00019315,3]